Cogmind - Beta 17 @@@ ROGUE MODE // 2026.07.25 @ 19:21:00 Player: LanceLander Result: Escaped! Performance ------------- Evolutions (9) 4500 Regions Visited (22) 4400 Robots Destroyed (132) 660 Value Destroyed (5485) 5485 Prototype IDs (37) 740 Alien Tech Used (2) 400 Bonus (7496) 7496 TOTAL SCORE: 23681 Bonus ------- Follower Combat Kills 1039 Met Data Miner 300 Met Zhirov 300 Built Enhanced Grunts 300 Met R17 at Cetus 500 Read Decrypted Archives 300 Met R17 at Research 2000 Win 3000 Friendly Fire -243 Cogmind --------- Core Integrity 1171/1600 Matter 300/300 Energy 732/830 System Corruption 18% Temperature Cool (6) Movement Walking (112) Location To Epsilon Eridani Parts ------- > --- POWER (3) -------- Micro Antimatter Reactor Light Quantum Reactor Light Quantum Reactor > --- PROPULSION (5) --- Enhanced Flexi-carbon Leg Enhanced Flexi-carbon Leg Myomer Leg Experimental Flexi-carbon Leg Biometal Leg > --- UTILITY (14) ----- Advanced Heat Sink Advanced Heat Sink Large Storage Unit Advanced Energy Well Advanced Gravity Neutralizer Advanced Target Analyzer Advanced Target Analyzer Core Analyzer Core Analyzer Improved Armor Integrity Analyzer Graphene Brace Experimental Thermal Shield Advanced Shield Generator Improved Hacking Suite > --- WEAPON (4) ------- Power Sword Power Sword Power Sword Force Lance > --- INVENTORY (15) --- Myomer Leg Experimental Flexi-carbon Leg Experimental Flexi-carbon Leg Improved Antigrav System Combat Antigrav System Transdimensional Reconstructor Fusion Bomb Launcher Fusion Bomb Launcher Peak State ------------ > --- POWER ------------ Particle Reactor Quantum Reactor Light Quantum Reactor > --- PROPULSION ------- Enhanced Flexi-carbon Leg Biometal Leg Biometal Leg Biometal Leg Biometal Leg > --- UTILITY ---------- Large Storage Unit Advanced Energy Well Advanced Target Analyzer Advanced Target Analyzer Core Analyzer Core Analyzer Improved Armor Integrity Analyzer Centrium Medium Armor Plating Medium Regenerative Plating Graphene Brace Experimental Thermal Shield Experimental Thermal Shield Advanced Force Field Improved Hacking Suite > --- WEAPON ----------- Fusion Bomb Launcher Power Sword Power Sword Force Lance > --- INVENTORY -------- Light Particle Reactor Light Quantum Reactor Enhanced Flexi-carbon Leg Myomer Leg Myomer Leg Experimental Flexi-carbon Leg Experimental Flexi-carbon Leg Experimental Flexi-carbon Leg Advanced Heat Sink Advanced Gravity Neutralizer Transdimensional Reconstructor Fusion Bomb Launcher Power Sword Power Sword Power Sword [Rating: 193] Favorites ----------- Power Neutrino Core Engine Improved Ion Engine Power Core Neutrino Core Reactor Light Particle Reactor Propulsion Xenon Bombardment Thruster Leg Myomer Leg Wheel Wheel Flight Unit Xenon Bombardment Thruster Utility Improved Hacking Suite Device Experimental Thermal Shield Storage Large Storage Unit Processor Advanced Targeting Computer Hackware Improved Hacking Suite Protection Centrium Medium Armor Plating Weapon Power Sword Energy Gun Heavy EM Pulse Gun Energy Cannon Neutron Cannon Ballistic Gun Improved Assault Rifle Launcher Rocket Launcher Special Weapon Remote Datajack Slashing Weapon Power Sword Piercing Weapon Heavy Pick Special Melee Weapon Improved Datajack Build | -11 -10 -9 -8 -7 -7 -7 -6 -6 -6 -5 -5 -5 -5 -5 -4 -4 -4 -4 -4 -3 -2 -1 ------- Run | Yrd Mat Mat Mat Fac Was Fac Fac Low Dat Pro Fac Upp Upp Zhi Pro Fac Ext Cet Arc Res Res Acc Slots Evolved 18 | . . 2 2 2 . . 2 . . . 2 . . . . 2 . . . 2 2 2 Power 1 | . . . . . . . . . . . 1 . . . . . . . . . . . Propulsion 3 | . . . . . . . 2 . . . . . . . . 1 . . . . . . Utility 12 | . . . 2 2 . . . . . . 1 . . . . 1 . . . 2 2 2 Weapon 2 | . . 2 . . . . . . . . . . . . . . . . . . . . Parts Attached 197 | 7 15 13 10 4 . 13 9 1 . 5 10 1 2 5 1 7 22 19 . 18 8 27 Power 36 | 1 2 . 1 1 . . 2 . . 1 4 . . 1 . . 8 3 . 3 3 6 Engine 4 | 1 2 . 1 . . . . . . . . . . . . . . . . . . . Core 13 | . . . . 1 . . 2 . . 1 4 . . . . . 5 . . . . . Reactor 19 | . . . . . . . . . . . . . . 1 . . 3 3 . 3 3 6 Propulsion 46 | 2 5 3 1 . . 2 2 . . 2 2 . . 1 . 1 8 4 . 5 . 8 Treads . | . . . . . . . . . . . . . . . . . . . . . . . Leg 30 | 2 3 . . . . . . . . . . . . 1 . . 7 4 . 5 . 8 Wheel 6 | . 2 3 1 . . . . . . . . . . . . . . . . . . . Hover . | . . . . . . . . . . . . . . . . . . . . . . . Flight 10 | . . . . . . 2 2 . . 2 2 . . . . 1 1 . . . . . Utility 71 | 2 2 2 4 2 . 7 3 1 . 2 3 . 1 3 1 5 3 9 . 6 5 10 Device 37 | 1 . 2 1 1 . 3 1 1 . 1 2 . . 1 1 5 2 4 . 4 2 5 Storage 5 | 1 2 . . . . . . . . . . . . . . . 1 1 . . . . Processor 9 | . . . . . . 2 1 . . . . . . . . . . . . . 2 4 Hackware 8 | . . . 1 1 . 1 1 . . 1 1 . . 1 . . . . . . 1 . Protection 12 | . . . 2 . . 1 . . . . . . 1 1 . . . 4 . 2 . 1 Artifact . | . . . . . . . . . . . . . . . . . . . . . . . Weapon 44 | 2 6 8 4 1 . 4 2 . . . 1 1 1 . . 1 3 3 . 4 . 3 Energy Gun 10 | 1 3 4 2 . . . . . . . . . . . . . . . . . . . Energy Cannon 2 | . . . . . . . . . . . . . . . . . . 2 . . . . Ballistic Gun 14 | 1 2 3 2 1 . 3 . . . . . 1 . . . . . 1 . . . . Ballistic Cannon . | . . . . . . . . . . . . . . . . . . . . . . . Launcher 3 | . 1 1 . . . . . . . . . . . . . . . . . . . 1 Special Weapon 2 | . . . . . . . 1 . . . 1 . . . . . . . . . . . Impact Weapon . | . . . . . . . . . . . . . . . . . . . . . . . Slashing Weapon 9 | . . . . . . . 1 . . . . . 1 . . . 2 . . 4 . 1 Piercing Weapon 2 | . . . . . . . . . . . . . . . . . 1 . . . . 1 Special Melee Weapon 2 | . . . . . . 1 . . . . . . . . . 1 . . . . . . Unidentified Prototypes 18 | . . 1 . 1 . . . . . . . . . 6 . . . 7 . 2 1 . Corrupted Parts 6 | . . 1 . . . . . . . . . . . . . . 5 . . . . . System Corruption 28 | . . 1 . . . . . . . . . . . . . . 27 . . . . . Parts Lost 59 | . 3 3 2 . . . . . . 3 2 1 . . 2 . 7 7 4 3 1 21 Power 14 | . . . 1 . . . . . . 1 . . . . . . 2 2 1 1 . 6 Propulsion 14 | . . 2 1 . . . . . . 1 . 1 . . . . 2 1 1 1 . 4 Utility 17 | . 1 . . . . . . . . . 1 . . . 1 . 1 2 . 1 1 9 Weapon 14 | . 2 1 . . . . . . . 1 1 . . . 1 . 2 2 2 . . 2 Highest Loss Streak 13 | . 3 1 1 . . . . . . 3 2 1 . . 1 . 3 4 4 3 1 13 To Critical Strikes 2 | . . . . . . . . . . . . . . . . . . 2 . . . . Average Backups 9 | 3 8 12 14 14 15 7 4 4 4 4 4 4 4 4 4 4 5 10 13 14 14 12 Power . | . 1 1 . 1 1 . . . . . . . . . . . . . . . . . Propulsion 1 | 2 4 2 . . . . . . . . . . . 1 1 . . 2 2 2 3 5 Utility 4 | . . 4 5 6 6 2 3 4 4 4 3 3 3 3 2 3 3 6 9 8 7 2 Weapon 2 | . 2 3 7 5 6 2 . . . . . . . . . . . . . 2 3 3 Tool/Special . | . . . . . . . . . . . . . . . . . . . . . . . Unused Backups 30 | . 2 7 2 . . 6 2 . . 1 2 1 . . . . . 1 1 1 . 4 Power 1 | . 1 . . . . . . . . . . . . . . . . . . . . . Propulsion 8 | . . 2 . . . 1 . . . 1 . . . . . . . 1 . 1 . 2 Utility 11 | . . 5 . . . 2 . . . . 2 1 . . . . . . 1 . . . Weapon 8 | . 1 . 2 . . 2 2 . . . . . . . . . . . . . . 1 Tool/Special 2 | . . . . . . 1 . . . . . . . . . . . . . . . 1 Average Slot Usage (%) 91 | . 96 87 98 98 97 89 82 93 93 86 85 85 88 83 82 82 87 93 97 98 99 97 Engine 2 | . 14 11 9 . . . . . . . . . . . . . . . . . . . Core 4 | . . . . 6 7 7 6 6 6 5 10 11 11 11 11 10 8 2 5 2 . . Reactor 3 | . . . . . . . . . . . . . . . . . 2 11 10 10 12 10 Leg 7 | . 19 . . . . . . . . . . . . . . . 7 24 25 22 19 18 Wheel 4 | . 8 18 17 15 15 8 . . . . . . . . . . . . . . . . Flight 7 | . . . . . . 6 25 26 26 25 18 17 17 16 16 20 12 . . . . . Device 13 | . 12 5 9 14 15 15 13 13 13 13 16 17 14 11 15 14 15 9 10 16 18 17 Storage 4 | . 14 11 9 7 7 2 . . . . . . . . . . . 5 5 4 4 6 Processor 8 | . . . . . . 7 13 13 13 13 11 11 11 11 11 10 10 10 10 9 13 16 Hackware 8 | . . . 7 14 15 15 13 13 13 13 11 11 11 12 11 10 10 10 10 5 4 3 Protection 3 | . . . 9 6 4 2 . . . . . . 2 1 . 4 3 5 5 8 7 6 Energy Gun 3 | . 15 22 9 8 7 1 . . . . . . . . . . . . . . . . Ballistic Gun 6 | . 9 15 22 21 23 19 6 6 6 1 . 2 5 5 4 . . 4 3 . . . Slashing Weapon 6 | . . . . . . . 1 6 6 6 5 5 9 11 11 10 11 . . 17 16 10 Peak Build Rating 193 | 7 11 20 28 38 38 44 60 60 59 59 80 83 87 85 84 101 116 138 138 154 169 193 Average Rating 82 | 4 8 15 26 36 36 36 46 59 59 52 74 79 81 79 82 98 102 123 131 145 167 179 On Entrance 69 | . 7 8 20 28 38 35 35 60 59 59 55 76 82 80 84 77 101 112 138 122 153 169 Avg Prop Armor Cover (%) 3 | . . . . . . . . . . . . . . . . . 7 . . . 2 3 Naked Turns . | . . . . . . . . . . . . . . . . . . . . . . . Heaviest Build 136 | 14 94 41 56 52 52 46 19 19 19 19 31 35 35 33 32 33 75 101 101 111 117 136 Greatest Support 148 | 20 20 20 20 20 20 20 28 28 28 28 36 36 36 36 36 42 120 131 134 137 122 148 Greatest Overweight (x) 4 | . 4 4 2 2 2 2 . . . . . . . 2 . . 2 . . . 1 1 Average Overweight (x) . | . . 1 2 1 2 . . . . . . . . . . . . . . . . . Largest Inventory Capacity 25 | 8 25 15 15 15 15 15 5 5 5 5 5 5 5 5 5 5 15 15 15 15 15 15 Average Capacity 10 | 6 10 15 15 15 15 7 5 5 5 5 5 5 5 5 5 5 5 15 15 15 15 15 Most Carried 15 | 6 13 15 15 15 15 15 5 5 4 5 5 5 5 5 5 5 7 15 15 15 15 15 Average Carried 9 | 3 8 12 14 14 15 7 4 4 4 4 4 4 4 4 4 4 5 10 13 14 14 12 Final Capacity 15 | 8 15 15 15 15 15 5 5 5 5 5 5 5 5 5 5 5 15 15 15 15 15 15 Final Carried 15 | 6 12 14 15 15 15 5 5 4 4 5 5 4 5 5 4 5 7 15 14 15 15 8 Class Distribution -------------------- 27% | Scavenger-Mutant 21% | Hacker-Mutant 16% | Hacker-Sprinter 8% | Gunner 7% | Mutant 5% | Scavenger-Tank 4% | Hacker-Tank 4% | Tank Dominant Class ---------------- Mutant | -10/Materials Gunner | -9/Materials Tank | -8/Materials Hacker-Tank | -7/Factory Hacker-Tank | -7/Waste Hacker-Mutant | -7/Factory Hacker-Sprinter | -6/Factory Hacker-Sprinter | -6/Lower Caves Hacker-Sprinter | -6/Data Miner Hacker-Sprinter | -5/Proximity Caves Hacker-Mutant | -5/Factory Hacker-Mutant | -5/Upper Caves Hacker-Mutant | -5/Upper Caves Hacker-Mutant | -5/Zhirov Hacker-Mutant | -4/Proximity Caves Hacker-Sprinter | -4/Factory Hacker-Sprinter | -4/Extension Scavenger-Tank | -4/Cetus Scavenger-Tank | -4/Archives Scavenger-Mutant | -3/Research Scavenger-Mutant | -2/Research Scavenger-Mutant | -1/Access Resources | -11 -10 -9 -8 -7 -7 -7 -6 -6 -6 -5 -5 -5 -5 -5 -4 -4 -4 -4 -4 -3 -2 -1 ----------- Run | Yrd Mat Mat Mat Fac Was Fac Fac Low Dat Pro Fac Upp Upp Zhi Pro Fac Ext Cet Arc Res Res Acc Matter Collected 3790 | 271 271 551 356 . . 90 219 . . 111 269 42 44 28 84 . 404 259 25 215 147 404 Remotely . | . . . . . . . . . . . . . . . . . . . . . . . Salvage Created 6240 | 28 400 1277 556 . . 90 49 . . 56 211 67 . 68 72 . 446 143 71 293 725 1688 Parts 351 | 4 26 77 42 . . 9 5 . . 4 12 3 . 1 6 . 16 3 7 12 26 98 Haulers Intercepted 6 | . 1 3 . . . . . . . . . . . . . . 1 . . . . 1 Recyclers Shooed 2 | . . 1 1 . . . . . . . . . . . . . . . . . . . Parts Field Recycled . | . . . . . . . . . . . . . . . . . . . . . . . Retrieved Matter . | . . . . . . . . . . . . . . . . . . . . . . . Parts Self-Destructed 15 | . . . . . . . . 2 . 3 . 1 2 1 6 . . . . . . . Prevented . | . . . . . . . . . . . . . . . . . . . . . . . Parts Restored . | . . . . . . . . . . . . . . . . . . . . . . . Kills | -11 -10 -9 -8 -7 -7 -7 -6 -6 -6 -5 -5 -5 -5 -5 -4 -4 -4 -4 -4 -3 -2 -1 ------- Run | Yrd Mat Mat Mat Fac Was Fac Fac Low Dat Pro Fac Upp Upp Zhi Pro Fac Ext Cet Arc Res Res Acc Combat Hostiles Destroyed 103 | . 13 21 14 . . 2 1 . . 3 4 1 . . 3 . 5 2 . 4 9 21 Melee 45 | . . . . . . . 1 . . 1 4 1 . . 3 . 5 . . 4 9 17 Guns 36 | . 5 17 8 . . 2 . . . 2 . . . . . . . 2 . . . . AOE 21 | . 7 4 6 . . . . . . . . . . . . . . . . . . 4 Classes Destroyed 13 | 1 5 4 1 . . 1 . . . . . 1 . . . . . . . . . . Worker 5 | . 1 2 1 . . 1 . . . . . . . . . . . . . . . . Builder 3 | . . 2 1 . . . . . . . . . . . . . . . . . . . Tunneler 1 | 1 . . . . . . . . . . . . . . . . . . . . . . Hauler 6 | . 1 3 . . . . . . . . . . . . . . 1 . . . . 1 Recycler 5 | . . 1 2 . . . . . . . . . . . . . . . . . . 2 Operator 3 | . 1 1 1 . . . . . . . . . . . . . . . . . . . Watcher 5 | . . 4 . . . . . . . . . . . . . . . 1 . . . . Swarmer 25 | . 3 3 7 . . . . . . 3 . 1 . . 3 . 1 . . . . 4 Grunt 40 | . 10 13 3 . . . . . . . 1 . . . . . . . . 4 5 4 Researcher 1 | . . . . . . . . . . . . 1 . . . . . . . . . . Sentry 14 | . . 5 3 . . . . . . . . . . . . . 4 . . . 1 1 Hunter 6 | . . . 1 . . 1 . . . . . . . . . . . . . . . 4 Programmer 16 | . . . . . . 1 1 . . . 3 . . . . . . . . . 3 8 Cetus Guard 2 | . . . . . . . . . . . . . . . . . . 2 . . . . Best Kill Streak 6 | 1 6 5 6 . . 1 1 . . 3 2 1 . . 3 . 2 3 . 4 4 5 Combat Bots Only 5 | . 5 4 4 . . 1 1 . . 3 2 1 . . 3 . 2 2 . 4 4 5 Max Kills in Single Turn 3 | 1 3 2 3 . . 1 1 . . 1 1 1 . . 1 . 1 1 . 1 1 2 Gunslinging . | . . . . . . . . . . . . . . . . . . . . . . . Exploded 2 | . 2 2 2 . . . . . . . . . . . . . . . . . . 2 Melee 1 | . . . . . . . 1 . . 1 1 1 . . 1 . 1 . . 1 1 1 Uniques/NPCs Destroyed . | . . . . . . . . . . . . . . . . . . . . . . . Combat | -11 -10 -9 -8 -7 -7 -7 -6 -6 -6 -5 -5 -5 -5 -5 -4 -4 -4 -4 -4 -3 -2 -1 -------- Run | Yrd Mat Mat Mat Fac Was Fac Fac Low Dat Pro Fac Upp Upp Zhi Pro Fac Ext Cet Arc Res Res Acc Hostile Shots Fired 1142 | . 34 50 53 . . 26 2 6 . 42 26 19 22 . 30 2 48 81 8 54 133 506 Missed 408 | . 7 15 17 . . 12 . 4 . 18 12 9 15 . 12 2 23 46 4 11 50 151 Hits 734 | . 27 35 36 . . 14 2 2 . 24 14 10 7 . 18 . 25 35 4 43 83 355 Projectile 734 | . 27 35 36 . . 14 2 2 . 24 14 10 7 . 18 . 25 35 4 43 83 355 AOE 2 | . . . . . . . . . . . . . . . . . 1 . . . . 1 Critical Strikes 47 | . . 2 1 . . . . . . . 2 1 . . . . 3 8 . 1 7 22 Actively Blocked 23 | . . . . . . . . . . . . . . . . . 1 . . . . 22 Part Disruptions 8 | . . . . . . . . . . . . . . . . . . . . . 3 5 Damage Taken 11273 | . 561 552 468 . . 151 40 12 . 366 276 142 121 . 211 . 599 866 1089 437 887 4495 Core 1533 | . 238 113 75 . . 18 . 6 . 80 20 55 . . 27 . 97 68 175 31 101 429 Absorbed by Shields 4162 | . . . . . . . . . . . . . . . . . 87 271 . 160 922 2722 Redirected to Shielding 53 | . . . . . . . . . . . . . . . . . 53 . . . . . Ignored by Resistances 1031 | . . . . . . . . . . . . . . . 11 . 88 . 18 285 122 507 Regen/Repaired (Parts) 781 | . . . . . . . . . . . . . . . . . . 35 23 259 72 392 Core Remaining (%) 79 | 100 4 71 86 . . 97 . . . 89 . . . . 89 . . . 70 97 93 73 Volleys Fired 165 | 1 44 54 27 . . 7 . . . 8 . 3 . . 3 . . 15 . . . 3 Largest 4 | 2 2 4 4 . . 4 . . . 1 . 1 . . 1 . . 3 . . . 1 Hottest 215 | 70 90 158 132 . . 107 . . . 28 . 33 . . 33 . . 215 . . . 52 Shots Fired 411 | 2 77 182 83 . . 23 . . . 8 . 3 . . 4 . . 26 . . . 3 Gun 382 | 2 69 181 77 . . 23 . . . 8 . 3 . . 4 . . 15 . . . . Cannon 11 | . . . . . . . . . . . . . . . . . . 11 . . . . Launcher 18 | . 8 1 6 . . . . . . . . . . . . . . . . . . 3 Special . | . . . . . . . . . . . . . . . . . . . . . . . Kinetic 223 | 1 36 79 55 . . 22 . . . 8 . 3 . . 4 . . 15 . . . . Thermal 54 | 1 19 . 22 . . 1 . . . . . . . . . . . 11 . . . . Explosive 18 | . 8 1 6 . . . . . . . . . . . . . . . . . . 3 Electromagnetic 116 | . 14 102 . . . . . . . . . . . . . . . . . . . . Robot Hit Streak 14 | 1 11 10 14 . . 7 . . . 4 . 1 . . 4 . . 10 . . . . Robot Miss Streak 5 | . 5 2 2 . . 3 . . . 4 . 4 . . . . . 3 . . . . Penetration Max 1 | . . . . . . . . . . . . . . . . . . 1 . . . . Secondary Targets 3 | . . 1 2 . . . . . . . . . . . . . . . . . . . Max Gunslinging Chain 1 | . . 1 1 . . . . . . . . . . . . . . . . . . . Shots Hit Robots 456 | 1 44 102 55 . . 17 2 . . 10 8 4 3 2 9 1 34 21 2 19 41 81 Core Hits 239 | 1 33 46 32 . . 15 1 . . 14 5 2 . . 3 . 13 10 2 7 18 37 Critical Kills 2 | . . . . . . . . . . . . . . . . . . 2 . . . . Critical Parts Destroyed 2 | . . 1 . . . . . . . . . . . . . . . 1 . . . . Critical Strikes 52 | . 3 1 . . . . . . . . . . . . . . 9 3 . 3 9 24 Burn 3 | . 3 . . . . . . . . . . . . . . . . . . . . . Destroy 4 | . . 1 . . . . . . . . . . . . . . . 3 . . . . Sever 34 | . . . . . . . . . . . . . . . . . 9 . . 3 9 13 Impale 11 | . . . . . . . . . . . . . . . . . . . . . . 11 Melee Attacks 330 | . . . . . . . 5 . . 7 17 7 4 3 14 10 45 14 2 26 62 114 Impact . | . . . . . . . . . . . . . . . . . . . . . . . Slashing 248 | . . . . . . . 5 . . 7 17 7 4 3 14 10 31 . . 26 62 62 Piercing 75 | . . . . . . . . . . . . . . . . . 7 14 2 . . 52 Sneak Attacks 21 | . . . . . . . 1 . . . . 2 . . . . 11 . . 2 2 3 Combat Hostiles 5 | . . . . . . . 1 . . . . . . . . . 2 . . . 2 . Follow-up Attacks 65 | . . . . . . . . . . . . . . . . 2 10 . . 8 20 25 Damage Inflicted 14876 | 12 960 1942 1437 . . 222 136 . . 259 333 246 128 213 319 45 1206 676 134 836 1732 4040 Guns 3701 | 12 508 1519 858 . . 222 . . . 153 . . . . 76 . . 353 . . . . Cannons 267 | . . . . . . . . . . . . . . . . . . 267 . . . . Explosions 2144 | . 448 416 571 . . . . . . . . . . . . . . . . . . 709 Melee 8741 | . . . . . . . 136 . . 106 333 246 128 213 243 45 1202 56 134 836 1732 3331 Ramming 23 | . 4 7 8 . . . . . . . . . . . . . 4 . . . . . Kinetic 2152 | . 197 606 545 . . 222 . . . 153 . . . . 76 . . 353 . . . . Thermal 938 | 12 197 149 313 . . . . . . . . . . . . . . 267 . . . . Explosive 1947 | . 400 267 571 . . . . . . . . . . . . . . . . . . 709 Electromagnetic 1075 | . 162 913 . . . . . . . . . . . . . . . . . . . . Impact . | . . . . . . . . . . . . . . . . . . . . . . . Slashing 6818 | . . . . . . . 136 . . 106 333 246 128 213 243 45 926 . . 836 1732 1874 Piercing 1923 | . . . . . . . . . . . . . . . . . 276 56 134 . . 1457 Highest Corruption 28 | . . 1 . . 7 7 2 2 . . 2 2 2 2 2 1 28 24 21 . 13 18 Average Corruption 7 | . . 1 . . 7 3 2 1 . . 1 2 2 2 2 1 5 21 21 . 11 9 Corruption Purged 23 | . . . . . . 7 . 2 . . . . . . . . 4 3 . . . 7 Corruption Blocked . | . . . . . . . . . . . . . . . . . . . . . . . Effects 120 | . . . . . 3 16 2 1 . . . 7 1 1 7 . 18 27 6 . 15 16 Message Errors 25 | . . . . . 1 6 1 . . . . 1 1 . . . 6 4 1 . 3 1 Matter Fused 30 | . . . . . 1 6 . 1 . . . 2 . 1 1 . 3 3 2 . 4 6 Heat Flow Errors 8 | . . . . . . 1 . . . . . . . . . . . 3 . . 3 1 Energy Discharges 16 | . . . . . . . 1 . . . . 4 . . 1 . 1 4 1 . 1 3 Parts Rejected 4 | . . . . . 1 . . . . . . . . . . . 2 1 . . . . Parts Fused 2 | . . . . . . 1 . . . . . . . . . . . 1 . . . . Data Loss (minor) 16 | . . . . . . . . . . . . . . . 3 . 2 4 1 . 4 2 Data Loss (major) 10 | . . . . . . . . . . . . . . . 1 . . 6 . . . 3 Misfires 2 | . . . . . . 1 . . . . . . . . 1 . . . . . . . Alerts 1 | . . . . . . 1 . . . . . . . . . . . . . . . . Misdirections 5 | . . . . . . . . . . . . . . . . . 4 . 1 . . . Weapon Failures 1 | . . . . . . . . . . . . . . . . . . 1 . . . . Overload Shots . | . . . . . . . . . . . . . . . . . . . . . . . Overflow Damage 632 | . 85 19 65 . . . . . . 25 . 13 13 178 . . 25 . . . 64 145 Projectiles . | . . . . . . . . . . . . . . . . . . . . . . . Explosions 233 | . 85 19 65 . . . . . . . . . . . . . . . . . . 64 Melee 399 | . . . . . . . . . . 25 . 13 13 178 . . 25 . . . 64 81 Knockbacks . | . . . . . . . . . . . . . . . . . . . . . . . Impact . | . . . . . . . . . . . . . . . . . . . . . . . Kinetic . | . . . . . . . . . . . . . . . . . . . . . . . Secondary . | . . . . . . . . . . . . . . . . . . . . . . . Self-Inflicted Damage 365 | . 260 102 3 . . . . . . . . . . . . . . . . . . . Shots 6 | . 5 1 . . . . . . . . . . . . . . . . . . . . Rammed 3 | . . 1 2 . . . . . . . . . . . . . . . . . . . Targets Rammed 5 | . 1 1 2 . . . . . . . . . . . . . 1 . . . . . Kicked 2 | . 1 . . . . . . . . . . . . . . . 1 . . . . . Crushed . | . . . . . . . . . . . . . . . . . . . . . . . Highest Temperature 418 | 30 241 418 116 . . 74 . . . . 18 4 3 . . . . 202 . . 236 152 Average Temperature 98 | 19 78 142 49 . . 43 . . . . 13 3 3 . . . . 89 . . 97 113 Received Heat Transfer 1147 | . 138 207 144 . . 15 18 . . . 45 . 48 . . . 81 39 12 183 49 168 Effects 5 | . . 5 . . . . . . . . . . . . . . . . . . . . Interference 2 | . . 2 . . . . . . . . . . . . . . . . . . . . Matter Decay 2 | . . 2 . . . . . . . . . . . . . . . . . . . . Damage (minor) 1 | . . 1 . . . . . . . . . . . . . . . . . . . . Siege Activations . | . . . . . . . . . . . . . . . . . . . . . . . Martial Activations . | . . . . . . . . . . . . . . . . . . . . . . . Shielding Activations . | . . . . . . . . . . . . . . . . . . . . . . . Robots Disrupted . | . . . . . . . . . . . . . . . . . . . . . . . Combat Hostiles . | . . . . . . . . . . . . . . . . . . . . . . . Robots Corrupted 1 | . 1 . . . . . . . . . . . . . . . . . . . . . Combat Hostiles 1 | . 1 . . . . . . . . . . . . . . . . . . . . . Parts Fried 7 | . 3 4 . . . . . . . . . . . . . . . . . . . . Impact Corruptions . | . . . . . . . . . . . . . . . . . . . . . . . Robots Melted . | . . . . . . . . . . . . . . . . . . . . . . . Combat Hostiles . | . . . . . . . . . . . . . . . . . . . . . . . Parts Melted . | . . . . . . . . . . . . . . . . . . . . . . . Heat Transferred 1582 | 37 629 250 666 . . . . . . . . . . . . . . . . . . . Parts Sabotaged . | . . . . . . . . . . . . . . . . . . . . . . . Parts Stolen . | . . . . . . . . . . . . . . . . . . . . . . . Parts Stripped . | . . . . . . . . . . . . . . . . . . . . . . . Power Chain Reactions 3 | . 1 2 . . . . . . . . . . . . . . . . . . . . Alert | -11 -10 -9 -8 -7 -7 -7 -6 -6 -6 -5 -5 -5 -5 -5 -4 -4 -4 -4 -4 -3 -2 -1 ------- Run | Yrd Mat Mat Mat Fac Was Fac Fac Low Dat Pro Fac Upp Upp Zhi Pro Fac Ext Cet Arc Res Res Acc Maximum Alert Level 1 | . 1 1 1 . . . . . . . . . . . . . . . . . . 1 Low Security (%) 89 | 100 72 45 52 100 100 100 100 . . . 100 . . . . 100 100 100 100 100 100 99 Level 1 10 | . 27 54 47 . . . . . . . . . . . . . . . . . . . Level 2 . | . . . . . . . . . . . . . . . . . . . . . . . Level 3 . | . . . . . . . . . . . . . . . . . . . . . . . Level 4 . | . . . . . . . . . . . . . . . . . . . . . . . Level 5 . | . . . . . . . . . . . . . . . . . . . . . . . High Security . | . . . . . . . . . . . . . . . . . . . . . . . Max Security . | . . . . . . . . . . . . . . . . . . . . . . . Peak Influence 369 | 5 266 369 323 98 . 168 79 . . . 54 . . . . 35 144 113 22 50 114 202 Initial 150 | . . 87 150 98 . . 79 . . . . . . . . . . 68 . . . . Average 71 | . 139 214 191 52 . 24 16 . . . 9 . . . . 4 26 40 1 7 36 113 Influence Increases 4995 | 5 514 734 492 14 . 329 74 15 . 130 163 185 150 10 115 75 665 252 34 117 276 646 Destroy 0b10 Robot/C 2440 | . 260 420 280 . . 40 20 . . 60 80 20 . . 60 . 340 140 20 100 180 420 Destroy 0b10 Robot/NC 170 | 5 15 65 25 . . 5 . . . . . . . 10 . . 10 10 10 . . 15 Destroy Leader 468 | . 62 114 70 . . 20 10 . . 10 20 . . . 10 . 30 . . 10 30 82 Allied During Kill 237 | . . . . . . . . . . . . . . . . . 186 42 4 5 . . Trap Triggered on 0b10 10 | . . . . . . . . . . . . . . . . 10 . . . . . . Successful Hack 232 | . 7 5 28 14 . 32 26 . . . 19 . . . . 48 12 8 . . 33 . Select Force Hacks 20 | . . . . . . 20 . . . . . . . . . . . . . . . . Disable Machine 105 | . 45 45 15 . . . . . . . . . . . . . . . . . . . Destroy Structure 323 | . 65 40 44 . . 2 3 . . . 14 . . . . 2 12 52 . 2 3 84 Partial Spotted 90 | . 15 . . . . 15 . . . . 30 . . . . 15 15 . . . . . Lose Combat Pursuer 900 | . 45 45 30 . . 195 15 15 . 60 . 165 150 . 45 . 60 . . . 30 45 Influence Decreases 4897 | 5 307 584 631 230 2 167 236 . 15 130 135 132 97 144 115 75 542 375 34 117 276 548 Entered New Map 764 | . . 120 207 120 2 . 83 . 15 . . 11 17 134 . . . 55 . . . . Time Decay 3165 | 5 277 434 254 110 . 167 143 . . 100 115 111 80 10 105 75 240 233 12 70 256 368 Lost Part 444 | . 30 30 20 . . . . . . 30 20 10 . . 10 . 52 30 . 22 10 180 Lost Ally 374 | . . . . . . . 10 . . . . . . . . . 250 57 22 25 10 . Purge Threat 150 | . . . 150 . . . . . . . . . . . . . . . . . . . Squads Dispatched 37 | . 4 2 1 1 . 7 5 . . . 2 . . . . 3 1 . . 3 3 5 Investigation 16 | . 2 . . 1 . 4 3 . . . 1 . . . . 1 . . . . 2 2 Extermination 12 | . . . . . . 3 2 . . . 1 . . . . 2 . . . . 1 3 Reinforcement 9 | . 2 2 1 . . . . . . . . . . . . . 1 . . 3 . . Assault . | . . . . . . . . . . . . . . . . . . . . . . . Garrison . | . . . . . . . . . . . . . . . . . . . . . . . Intercept . | . . . . . . . . . . . . . . . . . . . . . . . Searches Triggered . | . . . . . . . . . . . . . . . . . . . . . . . Data Miner Redirects 1 | . . . . . . . . . . . . . . . . . . . . . 1 . Construction Impeded 1 | . . 1 . . . . . . . . . . . . . . . . . . . . Haulers Reinforced 2 | . . . . . . . . . . . . . . . . . . . . 2 . . Active Scanning Responses . | . . . . . . . . . . . . . . . . . . . . . . . Cargo Convoy Interrupts . | . . . . . . . . . . . . . . . . . . . . . . . Stealth | -11 -10 -9 -8 -7 -7 -7 -6 -6 -6 -5 -5 -5 -5 -5 -4 -4 -4 -4 -4 -3 -2 -1 --------- Run | Yrd Mat Mat Mat Fac Was Fac Fac Low Dat Pro Fac Upp Upp Zhi Pro Fac Ext Cet Arc Res Res Acc Distress Signals 14 | . 1 2 1 . . . 1 . . . 1 . . . . . 2 2 . 2 1 1 Communications Jammed . | . . . . . . . . . . . . . . . . . . . . . . . Distress Signals . | . . . . . . . . . . . . . . . . . . . . . . . Times Spotted 267 | . 22 34 17 . 6 16 8 1 . 12 12 13 11 . 7 11 32 10 4 7 16 28 Peak Tracking Total 9 | . 4 4 4 . 6 7 5 5 . 4 9 4 8 . 4 7 7 5 5 4 5 6 Tactical Retreats 29 | . 2 3 1 . . 4 1 1 . 1 . 3 4 . 2 . 2 . . . 2 3 Traps | -11 -10 -9 -8 -7 -7 -7 -6 -6 -6 -5 -5 -5 -5 -5 -4 -4 -4 -4 -4 -3 -2 -1 ------- Run | Yrd Mat Mat Mat Fac Was Fac Fac Low Dat Pro Fac Upp Upp Zhi Pro Fac Ext Cet Arc Res Res Acc Traps Triggered 10 | . 1 1 1 2 . 1 1 . . . . . . . . 1 1 . . . 1 . Indirectly . | . . . . . . . . . . . . . . . . . . . . . . . Trap Hack Attempts 66 | . . . . . . . . . . . . . . . . 66 . . . . . . Triggered . | . . . . . . . . . . . . . . . . . . . . . . . Disarmed 2 | . . . . . . . . . . . . . . . . 2 . . . . . . Reprogrammed 7 | . . . . . . . . . . . . . . . . 7 . . . . . . Reused 1 | . . . . . . . . . . . . . . . . 1 . . . . . . Traps Extracted . | . . . . . . . . . . . . . . . . . . . . . . . Installed . | . . . . . . . . . . . . . . . . . . . . . . . Triggered 1 | . . . . . . . . . . . . . . . . 1 . . . . . . Machines | -11 -10 -9 -8 -7 -7 -7 -6 -6 -6 -5 -5 -5 -5 -5 -4 -4 -4 -4 -4 -3 -2 -1 ---------- Run | Yrd Mat Mat Mat Fac Was Fac Fac Low Dat Pro Fac Upp Upp Zhi Pro Fac Ext Cet Arc Res Res Acc Machines Disabled 8 | . 3 3 1 . . . . . . . . . . . . . 1 . . . . . Max in Single Turn 2 | . 2 2 1 . . . . . . . . . . . . . . . . . . . Garrison Access 2 | . . . . . . 1 1 . . . . . . . . . . . . . . . Energy Cycler 2 | . . . . . . . . . . . . . . . . . 1 . . . . 1 Machines Repaired . | . . . . . . . . . . . . . . . . . . . . . . . Machines Dismantled . | . . . . . . . . . . . . . . . . . . . . . . . Machines Sabotaged . | . . . . . . . . . . . . . . . . . . . . . . . Overloaded Fab Kills . | . . . . . . . . . . . . . . . . . . . . . . . Hacking | -11 -10 -9 -8 -7 -7 -7 -6 -6 -6 -5 -5 -5 -5 -5 -4 -4 -4 -4 -4 -3 -2 -1 --------- Run | Yrd Mat Mat Mat Fac Was Fac Fac Low Dat Pro Fac Upp Upp Zhi Pro Fac Ext Cet Arc Res Res Acc Machines Accessed 76 | . 3 4 4 2 . 11 12 1 4 . 8 . 1 7 . 8 2 1 1 1 4 2 Terminals 39 | . 3 3 3 . . 5 7 . . . 3 . 1 . . 6 2 1 . . 3 2 Fabricators 6 | . . . . 1 . 1 1 . . . 2 . . . . 1 . . . . . . Repair Stations . | . . . . . . . . . . . . . . . . . . . . . . . Recycling Units 6 | . . . . 1 . 4 . . . . 1 . . . . . . . . . . . Scanalyzers 5 | . . 1 1 . . . 2 . . . . . . . . . . . . 1 . . Garrison Access 7 | . . . . . . 1 2 . . . 2 . . . . 1 . . . . 1 . Total Hacks 270 | . 10 11 23 4 . 29 29 1 28 . 17 . 1 46 . 23 5 2 25 2 9 5 Successful 188 | . 5 5 14 2 . 21 16 1 28 . 8 . 1 46 . 9 4 1 25 . 2 . Failed 81 | . 5 5 9 2 . 8 13 . . . 9 . . . . 14 1 1 . 2 7 5 Catastrophic 9 | . . 1 . . . . 2 . . . 1 . . . . 2 . 1 . . . 2 Database Lockouts 1 | . . 1 . . . . . . . . . . . . . . . . . . . . Manual 82 | . 5 4 12 3 . 12 11 . . . 12 . . . . 16 3 1 . . 2 1 Terminals 118 | . 10 8 19 . . 15 18 . . . 11 . 1 . . 18 5 2 . . 6 5 Fabricators 12 | . . . . 1 . 4 1 . . . 2 . . . . 4 . . . . . . Repair Stations . | . . . . . . . . . . . . . . . . . . . . . . . Recycling Units 13 | . . . . 3 . 9 . . . . 1 . . . . . . . . . . . Scanalyzers 15 | . . 3 4 . . . 6 . . . . . . . . . . . . 2 . . Garrison Access 12 | . . . . . . 1 4 . . . 3 . . . . 1 . . . . 3 . Terminal Hacks 135 | . 3 2 8 . . 6 5 1 28 . 2 . 1 46 . 4 2 1 25 . 1 . Record 78 | . . . . . . . . . 11 . 2 . 1 34 . 2 2 . 25 . 1 . Part Schematic 17 | . . . . . . 2 1 . 9 . . . . 4 . 1 . . . . . . Robot Schematic 5 | . . . . . . . . . 5 . . . . . . . . . . . . . Robot Analysis 8 | . . . 4 . . . . . . . . . . 4 . . . . . . . . Prototype ID Bank 7 | . . . . . . . . . 3 . . . . 4 . . . . . . . . Open Door 3 | . . . . . . . . 1 . . . . . . . 1 . 1 . . . . Open DSF 1 | . . . . . . . 1 . . . . . . . . . . . . . . . Emergency Access Points 1 | . . . . . . 1 . . . . . . . . . . . . . . . . Fabricator Index 1 | . . . . . . . 1 . . . . . . . . . . . . . . . Recycling Unit Index 1 | . . . . . . 1 . . . . . . . . . . . . . . . . Alert Level 2 | . . . 2 . . . . . . . . . . . . . . . . . . . Unreport Threat 1 | . . . 1 . . . . . . . . . . . . . . . . . . . Locate Traps 4 | . 1 . . . . 1 2 . . . . . . . . . . . . . . . Transport Status 1 | . . 1 . . . . . . . . . . . . . . . . . . . . Recall Reinforcements 1 | . 1 . . . . . . . . . . . . . . . . . . . . . Hauler Manifests 2 | . . 1 . . . 1 . . . . . . . . . . . . . . . . Registered Components 1 | . 1 . . . . . . . . . . . . . . . . . . . . . Registered Prototypes 1 | . . . 1 . . . . . . . . . . . . . . . . . . . Fabricator Hacks 1 | . . . . . . 1 . . . . . . . . . . . . . . . . Network Status 1 | . . . . . . 1 . . . . . . . . . . . . . . . . Repair Station Hacks . | . . . . . . . . . . . . . . . . . . . . . . . Recycling Unit Hacks 6 | . . . . 1 . 5 . . . . . . . . . . . . . . . . Process 1 | . . . . . . 1 . . . . . . . . . . . . . . . . Report Inventory 1 | . . . . 1 . . . . . . . . . . . . . . . . . . Retrieve Matter 4 | . . . . . . 4 . . . . . . . . . . . . . . . . Scanalyzer 10 | . . 2 2 . . . 6 . . . . . . . . . . . . . . . Insert Component 3 | . . . 1 . . . 2 . . . . . . . . . . . . . . . Analyze 3 | . . . 1 . . . 2 . . . . . . . . . . . . . . . Retrieve Study 4 | . . 2 . . . . 2 . . . . . . . . . . . . . . . Garrison Access Hacks 2 | . . . . . . 1 1 . . . . . . . . . . . . . . . Seal Access 2 | . . . . . . 1 1 . . . . . . . . . . . . . . . Unauthorized Hacks 34 | . 2 1 4 1 . 8 4 . . . 6 . . . . 5 2 . . . 1 . Terminals 23 | . 2 1 4 . . 5 4 . . . 2 . . . . 2 2 . . . 1 . Track 3 | . . 1 1 . . 1 . . . . . . . . . . . . . . . . Assimilate 6 | . . . . . . . 1 . . . 1 . . . . 1 2 . . . 1 . Botnet 14 | . 2 . 3 . . 4 3 . . . 1 . . . . 1 . . . . . . Fabricators 7 | . . . . 1 . 2 . . . . 2 . . . . 2 . . . . . . Report 1 | . . . . . . . . . . . . . . . . 1 . . . . . . Fabnet 5 | . . . . 1 . 1 . . . . 2 . . . . 1 . . . . . . Download 1 | . . . . . . 1 . . . . . . . . . . . . . . . . Repair Stations . | . . . . . . . . . . . . . . . . . . . . . . . Recycling Units 2 | . . . . . . 1 . . . . 1 . . . . . . . . . . . Reject 1 | . . . . . . . . . . . 1 . . . . . . . . . . . Mask 1 | . . . . . . 1 . . . . . . . . . . . . . . . . Scanalyzers . | . . . . . . . . . . . . . . . . . . . . . . . Garrison Access 2 | . . . . . . . . . . . 1 . . . . 1 . . . . . . Decoy 1 | . . . . . . . . . . . 1 . . . . . . . . . . . Reprogram 1 | . . . . . . . . . . . . . . . . 1 . . . . . . Data Cores Recovered . | . . . . . . . . . . . . . . . . . . . . . . . Used . | . . . . . . . . . . . . . . . . . . . . . . . Hacking Detections 46 | . 3 2 4 1 . 8 10 . . . 5 . . . . 5 . 1 . 1 4 2 Full Trace Events 14 | . 1 . . 1 . 3 3 . . . 1 . . . . 1 . . . . 2 2 Feedback Events 2 | . . . . . . . . . . . 1 . . . . . . . . . . 1 Corruption 1 | . . . . . . . . . . . . . . . . . . . . . . 1 Hackware Fried 1 | . . . . . . . . . . . 1 . . . . . . . . . . . Feedback Blocked . | . . . . . . . . . . . . . . . . . . . . . . . Robot Schematics Acquired 6 | . . . . . . 1 . . 5 . . . . . . . . . . . . . Robots Built . | . . . . . . . . . . . . . . . . . . . . . . . Authchips . | . . . . . . . . . . . . . . . . . . . . . . . Time . | . . . . . . . . . . . . . . . . . . . . . . . Total Robot Build Rating . | . . . . . . . . . . . . . . . . . . . . . . . Part Schematics Acquired 19 | . . . 1 . . 2 2 . 9 . . . . 4 . 1 . . . . . . Parts Built . | . . . . . . . . . . . . . . . . . . . . . . . Authchips . | . . . . . . . . . . . . . . . . . . . . . . . Time . | . . . . . . . . . . . . . . . . . . . . . . . Total Part Build Rating . | . . . . . . . . . . . . . . . . . . . . . . . Part Studies Acquired 4 | . . 2 . . . . 2 . . . . . . . . . . . . . . . Parts Repaired . | . . . . . . . . . . . . . . . . . . . . . . . Time . | . . . . . . . . . . . . . . . . . . . . . . . Parts Recycled . | . . . . . . . . . . . . . . . . . . . . . . . Recycled Matter 22 | . . . . . . 22 . . . . . . . . . . . . . . . . Retrieved Matter 22 | . . . . . . 22 . . . . . . . . . . . . . . . . Retrieved Components . | . . . . . . . . . . . . . . . . . . . . . . . Parts Scanalyzed 2 | . . . 1 . . . 1 . . . . . . . . . . . . . . . Part Schematics Acquired 2 | . . . 1 . . . 1 . . . . . . . . . . . . . . . Parts Damaged 1 | . . . . . . . 1 . . . . . . . . . . . . . . . Bothacking | -11 -10 -9 -8 -7 -7 -7 -6 -6 -6 -5 -5 -5 -5 -5 -4 -4 -4 -4 -4 -3 -2 -1 ------------ Run | Yrd Mat Mat Mat Fac Was Fac Fac Low Dat Pro Fac Upp Upp Zhi Pro Fac Ext Cet Arc Res Res Acc Used RIF Installer . | . . . . . . . . . . . . . . . . . . . . . . . Robots Hacked 10 | . . . . . . . . . . . . . . . . . 3 . 2 5 . . Non-combat . | . . . . . . . . . . . . . . . . . . . . . . . Combat 10 | . . . . . . . . . . . . . . . . . 3 . 2 5 . . Robot Hacks Applied . | . . . . . . . . . . . . . . . . . . . . . . . Relay Couplers Released . | . . . . . . . . . . . . . . . . . . . . . . . Fabnet Peak Effective % 6 | . . . . . . . 3 3 3 1 1 1 1 1 6 6 6 6 6 5 1 . Autooverrided 10 | . . . . . . . . . . . . . . . . . 3 . 2 5 . . Robots Rewired 8 | . . . . . . . . . . . . . . . . . 8 . . . . . Allies Hacked . | . . . . . . . . . . . . . . . . . . . . . . . Hacks Repelled . | . . . . . . . . . . . . . . . . . . . . . . . Allies | -11 -10 -9 -8 -7 -7 -7 -6 -6 -6 -5 -5 -5 -5 -5 -4 -4 -4 -4 -4 -3 -2 -1 -------- Run | Yrd Mat Mat Mat Fac Was Fac Fac Low Dat Pro Fac Upp Upp Zhi Pro Fac Ext Cet Arc Res Res Acc Total Allies 33 | . . . . . . . 1 . . . . . . . . 1 18 5 2 5 1 . Largest Group 9 | . . . . . . . 1 . . . . . . . . 1 9 6 2 2 1 . Highest-Rated Group 636 | . . . . . . . 26 . . . . . . . . 26 328 636 131 60 45 . Highest-Rated Ally 159 | . . . . . . . 26 . . . . . . . . 26 159 159 82 47 45 . Total Orders 3 | . . . . . . . . . . . . . . . . 1 2 . . . . . STAY 3 | . . . . . . . . . . . . . . . . 1 2 . . . . . Ally Attacks 125 | . . . . . . . . . . . . . . . . . 72 37 3 13 . . Total Damage 3967 | . . . . . . . . . . . . . . . . . 1678 1896 134 259 . . Kills 21 | . . . . . . . . . . . . . . . . . 13 6 1 1 . . Allies Corrupted 1 | . . . . . . . . . . . . . . . . . . . . 1 . . Allies Melted 2 | . . . . . . . . . . . . . . . . . 1 . . 1 . . Intel | -11 -10 -9 -8 -7 -7 -7 -6 -6 -6 -5 -5 -5 -5 -5 -4 -4 -4 -4 -4 -3 -2 -1 ------- Run | Yrd Mat Mat Mat Fac Was Fac Fac Low Dat Pro Fac Upp Upp Zhi Pro Fac Ext Cet Arc Res Res Acc Active Infowar (turns) 6648 | 16 727 . . . . 464 527 72 37 206 759 445 163 95 613 420 1037 16 . 488 563 . Sensors 5905 | . . . . . . 464 527 72 37 206 759 445 163 95 613 420 1037 16 . 488 563 . Traps 324 | . . . . . . . . . . . 147 93 84 . . . . . . . . . Seismic 743 | 16 727 . . . . . . . . . . . . . . . . . . . . . Cloaking 1167 | . . . . . . . 2 44 37 115 612 352 5 . . . . . . . . . Robot Analysis Total 8 | . . . 4 . . . . . . . . . . 4 . . . . . . . . Derelict Logs Recovered 6 | . . . . . . . . . . 2 . 1 1 . 2 . . . . . . . Drone Launches . | . . . . . . . . . . . . . . . . . . . . . . . Drone Recoveries . | . . . . . . . . . . . . . . . . . . . . . . . Exploration | -11 -10 -9 -8 -7 -7 -7 -6 -6 -6 -5 -5 -5 -5 -5 -4 -4 -4 -4 -4 -3 -2 -1 ------------- Run | Yrd Mat Mat Mat Fac Was Fac Fac Low Dat Pro Fac Upp Upp Zhi Pro Fac Ext Cet Arc Res Res Acc Turns Passed 11631 | 97 834 1066 543 236 79 1160 527 72 37 206 759 445 163 95 613 420 1063 599 131 520 922 1044 Spaces Moved 12438 | 68 526 712 389 184 76 1645 1368 192 119 459 915 1008 390 187 778 798 772 395 100 321 531 505 Core 7 | 5 . . . . . . . . . . . . . 1 . . 1 . . . . . Treads . | . . . . . . . . . . . . . . . . . . . . . . . Legs 2530 | 63 365 . . . . . . . . . . . . . . . 250 395 100 321 531 505 Wheels 2170 | . 161 712 389 184 76 648 . . . . . . . . . . . . . . . . Hover . | . . . . . . . . . . . . . . . . . . . . . . . Flight 7731 | . . . . . . 997 1368 192 119 459 915 1008 390 186 778 798 521 . . . . . Fastest Speed 29 | 50 95 85 100 85 100 37 31 31 31 29 29 35 35 35 35 32 31 120 120 102 102 100 Average Speed 62 | 114 112 98 100 99 100 58 31 31 31 29 34 35 35 35 35 32 60 120 120 111 129 127 Slowest Speed 183 | 120 140 130 100 100 100 100 31 31 31 34 35 35 35 150 35 32 150 120 120 120 183 182 Overloaded Moves . | . . . . . . . . . . . . . . . . . . . . . . . Propulsion Burnouts . | . . . . . . . . . . . . . . . . . . . . . . . Robots Hopped 41 | . . . . . . 10 7 3 . . 11 . . . . 2 4 . . 4 . . Potential Cave-ins . | . . . . . . . . . . . . . . . . . . . . . . . Cave-ins Triggered . | . . . . . . . . . . . . . . . . . . . . . . . Exploration Rate (%) 47 | 3 92 51 41 5 78 39 23 33 74 59 16 83 61 62 76 14 73 87 94 12 9 11 Regions Visited 22 Branch Regions 10 Pre-discovered Areas 5 | . . . . . . . . . 1 . . . . 3 1 . . . . . . . Known Exits Taken 16 | . . . . . . 1 1 1 1 1 1 1 1 1 1 1 1 1 1 1 1 . Unknown Exits Taken 4 | 1 1 1 1 . . . . . . . . . . . . . . . . . . . Scrap Searched 11 | . . . . . . . . . . 1 . 5 3 . 2 . . . . . . . Spaces Dug 23 | . . . . . . . 3 . . 3 7 3 . . 3 1 . . . 1 1 1 Terrain Destroyed 206 | . 62 35 36 . . . 3 . . 3 7 3 . . 3 1 . 5 . 1 1 46 Melee 23 | . . . . . . . 3 . . 3 7 3 . . 3 1 . . . 1 1 1 Projectile 5 | . . . . . . . . . . . . . . . . . . 5 . . . . AOE 178 | . 62 35 36 . . . . . . . . . . . . . . . . . . 45 Terrain Rammed . | . . . . . . . . . . . . . . . . . . . . . . . Walls Destroyed . | . . . . . . . . . . . . . . . . . . . . . . . Machines Disabled . | . . . . . . . . . . . . . . . . . . . . . . . Actions | -11 -10 -9 -8 -7 -7 -7 -6 -6 -6 -5 -5 -5 -5 -5 -4 -4 -4 -4 -4 -3 -2 -1 --------- Run | Yrd Mat Mat Mat Fac Was Fac Fac Low Dat Pro Fac Upp Upp Zhi Pro Fac Ext Cet Arc Res Res Acc Total 15491 | 81 698 951 491 234 79 1826 1456 199 118 510 1326 1085 409 212 1096 947 1316 469 108 451 703 726 Wait 2072 | . 86 145 44 40 4 126 66 9 . 27 377 63 10 . 303 64 431 3 . 79 108 87 Move 12340 | 67 525 711 388 184 75 1625 1353 186 118 458 892 1007 389 186 777 793 764 394 99 315 530 504 Hop 35 | . . . . . . 9 7 2 . . 11 . . . . 2 3 . . 1 . . Pick Up 111 | 6 12 13 10 1 . 18 7 . . 2 6 1 1 5 . 1 3 9 3 5 3 5 Fast Attach 114 | 7 3 6 1 4 . 5 4 . . 2 4 1 1 8 . 4 22 12 . 10 8 12 Attach 55 | . 2 5 3 2 . 6 2 . . . 2 1 . . 1 3 2 4 2 3 2 15 Detach 26 | . 1 2 . 1 . 3 . . . . 1 . 1 . . 3 . 6 . 2 3 3 Swap 85 | . 11 4 8 2 . 4 4 2 . 4 6 1 2 . . 1 7 5 . 9 3 12 Drop 134 | . 13 10 8 . . 23 8 . . 2 10 1 1 11 . 2 16 7 2 11 6 3 Fire 165 | 1 44 54 27 . . 7 . . . 8 . 3 . . 3 . . 15 . . . 3 Melee 247 | . . . . . . . 5 . . 7 17 7 4 2 12 8 31 14 2 16 40 82 Ram 3 | . . 1 2 . . . . . . . . . . . . . . . . . . . Kick 2 | . 1 . . . . . . . . . . . . . . . 1 . . . . . Crush . | . . . . . . . . . . . . . . . . . . . . . . . Escape Stasis 13 | . . . . . . . . . . . . . . . . . 13 . . . . . Rewire 23 | . . . . . . . . . . . . . . . . . 23 . . . . . Trap 66 | . . . . . . . . . . . . . . . . 66 . . . . . . Miscellaneous . | . . . . . . . . . . . . . . . . . . . . . . . Route ------- -11/Scrapyard -10/Materials (discovered 5 exits: *Mat x3 / [*Min x2]) -9/Materials -8/Materials (discovered 2 exits: *Fac / [*Sto]) -7/Factory -7/Waste -7/Factory (discovered 2 exits: *Fac / *Low) -6/Factory (discovered 2 exits: *Fac / *Low) -6/Lower Caves -6/Data Miner -5/Proximity Caves -5/Factory -5/Upper Caves -5/Upper Caves (discovered 2 exits: *Fac / *Zhi) -5/Zhirov -4/Proximity Caves -4/Factory (discovered 2 exits: *Upp / *Ext) -4/Extension (discovered 2 exits: *Res / *Cet) -4/Cetus (discovered 2 exits: *Res / *Arc) -4/Archives (discovered 3 exits: *Res / [*Hub x2]) -3/Research (discovered 2 exits: *Res / Arm) -2/Research -1/Access To Epsilon Eridani History --------- Turn | Location | Event 6 | -11/Scrapyard | Discovered new exit (range 15) 98 | -11/Scrapyard | Entered Materials 324 | -10/Materials | Build established: Mutant 333 | -10/Materials | Discovered new exit (range 7) 421 | -10/Materials | Discovered new exit (range 15) 500 | -10/Materials | Discovered new exit (range 9) 574 | -10/Materials | Discovered new exit (range 5) 783 | -10/Materials | Discovered new exit (range 16) 826 | -10/Materials | Core integrity fell below 50% 826 | -10/Materials | Core integrity fell below 20% 856 | -10/Materials | Lost 3 parts (1u2w) 898 | -10/Materials | Derelicts attacked the area 932 | -10/Materials | Entered another Materials area 932 | -9/Materials | Evolved 2 slots: Weapon x2 1073 | -9/Materials | Central database locked down 1307 | -9/Materials | Build established: Gunner 1723 | -9/Materials | Discovered new exit (range 11) 1998 | -9/Materials | Entered another Materials area 1998 | -8/Materials | Evolved 2 slots: Utility x2 1998 | -8/Materials | Discovered new exit (range 7) 2269 | -8/Materials | Discovered new exit (range 9) 2333 | -8/Materials | Build established: Tank 2541 | -8/Materials | Entered Factory 2541 | -7/Factory | Evolved 2 slots: Utility x2 2573 | -7/Factory | Discovered new exit (range 16) 2777 | -7/Factory | Sucked down chute 2777 | -7/Factory | Entered Waste 2785 | -7/Waste | Spotted C-40 Crusher 2787 | -7/Waste | Spotted C-40 Crusher 2792 | -7/Waste | EMP discharged 2798 | -7/Waste | Spotted C-40 Crusher 2815 | -7/Waste | Spotted C-40 Crusher 2825 | -7/Waste | Spotted C-40 Crusher 2826 | -7/Waste | Spotted C-40 Crusher 2844 | -7/Waste | Discovered new exit (range 13) 2856 | -7/Waste | Entered Factory 2860 | -7/Factory | Build established: Hacker-Tank 3307 | -7/Factory | Discovered new exit (range 5) 3600 | -7/Factory | Identified exit to Lower Caves 3817 | -7/Factory | Build established: Hacker-Mutant 4010 | -7/Factory | Discovered new exit (range 11) 4014 | -7/Factory | Identified exit to Factory 4016 | -7/Factory | Entered another Factory area 4016 | -6/Factory | Evolved 2 slots: Propulsion x2 4126 | -6/Factory | Discovered new exit (range 9) 4128 | -6/Factory | Identified exit to Lower Caves 4193 | -6/Factory | Discovered new exit (range 5) 4195 | -6/Factory | Identified exit to Factory 4309 | -6/Factory | Identified exit to DSF 4344 | -6/Factory | Build established: Hacker-Sprinter 4543 | -6/Factory | Entered Lower Caves 4610 | -6/Lower Caves | A Derelict revealed a hidden shortcut to meet someone special 4614 | -6/Lower Caves | Identified exit to Data Miner 4615 | -6/Lower Caves | Entered Data Miner 4615 | -6/Data Miner | Discovered new exit (range 6) 4618 | -6/Data Miner | Identified exit to Proximity Caves 4623 | -6/Data Miner | Met Data Miner 4631 | -6/Data Miner | Learned location of Section 7 (-2) 4631 | -6/Data Miner | Acquired the access code to Warlord's prototype stash 4636 | -6/Data Miner | Received God Mode back door access code from Data Miner 4652 | -6/Data Miner | Entered Proximity Caves 4717 | -5/Proximity Caves | Lost 3 parts (1p1n1w) 4745 | -5/Proximity Caves | Learned Factory terminal intel 4858 | -5/Proximity Caves | Entered Factory 4858 | -5/Factory | Evolved 2 slots: Power x1, Utility x1 4859 | -5/Factory | Loaded intel: 26 terminal locations 5390 | -5/Factory | Build established: Hacker-Mutant 5585 | -5/Factory | Watched by a mysterious "MATRIX" hacker 5585 | -5/Factory | Imp. Hacking Suite fried by hacking feedback 5596 | -5/Factory | Discovered new exit (range 4) 5616 | -5/Factory | Identified exit to Upper Caves 5617 | -5/Factory | Entered Upper Caves 5646 | -5/Upper Caves | Learned Factory security intel 5713 | -5/Upper Caves | Encountered a Warlord checkpoint 5806 | -5/Upper Caves | Found Alien Artifact 5981 | -5/Upper Caves | Discovered new exit (range 11) 5984 | -5/Upper Caves | Identified exit to Upper Caves 6019 | -5/Upper Caves | Attacked by a delusional Derelict stockpiling parts 6062 | -5/Upper Caves | Entered another Upper Caves area 6064 | -5/Upper Caves | Discovered new exit (range 15) 6064 | -5/Upper Caves | Learned Factory terminal intel 6068 | -5/Upper Caves | Ambushed by wild Derelicts 6072 | -5/Upper Caves | Identified exit to Factory 6224 | -5/Upper Caves | Discovered new exit (range 5) 6225 | -5/Upper Caves | Identified exit to Zhirov 6225 | -5/Upper Caves | Entered Zhirov 6225 | -5/Zhirov | Discovered new exit (range 3) 6238 | -5/Zhirov | Learned location of Quarantine (-3) 6238 | -5/Zhirov | Learned location of Testing (-2) 6238 | -5/Zhirov | Learned location of Command (-1) 6252 | -5/Zhirov | Found Alien Artifact 6252 | -5/Zhirov | Identified Integrated Dissipator 6252 | -5/Zhirov | Installed Integrated Dissipator, increased core heat dissipation (+20) 6254 | -5/Zhirov | Identified Core Expander 6254 | -5/Zhirov | Installed Core Expander, added new Power slot 6306 | -5/Zhirov | Found Alien Artifact 6319 | -5/Zhirov | Identified exit to Proximity Caves 6320 | -5/Zhirov | Entered Proximity Caves 6432 | -4/Proximity Caves | Spotted B-86 Titan 6456 | -4/Proximity Caves | Learned location of Armory (-3) 6643 | -4/Proximity Caves | Received a Behemoth hack from an annoying Tinkerer 6925 | -4/Proximity Caves | Discovered exit to Factory (range 6) 6933 | -4/Proximity Caves | Entered Factory 6933 | -4/Factory | Evolved 2 slots: Propulsion x1, Utility x1 6935 | -4/Factory | Loaded intel: 28 terminal locations 7018 | -4/Factory | Discovered new exit (range 14) 7022 | -4/Factory | Identified exit to Upper Caves 7220 | -4/Factory | Build established: Hacker-Sprinter 7321 | -4/Factory | Discovered new exit (range 6) 7322 | -4/Factory | Identified exit to Extension 7337 | -4/Factory | Spotted B-86 Titan 7353 | -4/Factory | Entered Extension 7776 | -4/Extension | Rescued a captive Derelict 7779 | -4/Extension | Rescued a captive Derelict 7885 | -4/Extension | Rescued a captive Derelict 7886 | -4/Extension | Spotted B-86 Titan 7913 | -4/Extension | Spotted B-86 Titan 7917 | -4/Extension | Lost 3 parts (2p1n) 7931 | -4/Extension | Rescued a captive Derelict 7937 | -4/Extension | Lost 3 allies 7991 | -4/Extension | Energy Cycler disabled 7992 | -4/Extension | Rescued a captive Derelict 7993 | -4/Extension | Rescued a captive Derelict 7994 | -4/Extension | Rescued a captive Derelict 7995 | -4/Extension | Rescued a captive Derelict 8036 | -4/Extension | Rescued A7 8197 | -4/Extension | System corruption reached 10% 8334 | -4/Extension | Discovered new exit (range 10) 8335 | -4/Extension | Discovered new exit (range 6) 8348 | -4/Extension | Identified exit to Cetus 8350 | -4/Extension | Identified exit to Research 8380 | -4/Extension | Disrupted transfer network 8381 | -4/Extension | Local machine network offline 8385 | -4/Extension | P-70 Sage assimilated allied 93-TLQ(h) 8416 | -4/Extension | Entered Cetus 8416 | -4/Cetus | Accompanied by 1 ally (A7) 8421 | -4/Cetus | Acquired a Cetus Manufacturing Module code from A7 8431 | -4/Cetus | Spotted Cetus Guard 8431 | -4/Cetus | Spotted Cetus Guard 8434 | -4/Cetus | Spotted Cetus Guard 8434 | -4/Cetus | Spotted Cetus Guard 8435 | -4/Cetus | Lost 3 allies 8438 | -4/Cetus | Allies destroyed Cetus Guard 8462 | -4/Cetus | Allies destroyed Cetus Guard 8465 | -4/Cetus | Allies destroyed Cetus Guard 8494 | -4/Cetus | Lost 3 parts (1n2w) 8502 | -4/Cetus | Build established: Scavenger-Mutant 8532 | -4/Cetus | Started Cetus Manufacturing Module 8557 | -4/Cetus | Manufactured an Enhanced Grunt 8582 | -4/Cetus | Manufactured an Enhanced Grunt 8607 | -4/Cetus | Manufactured an Enhanced Grunt 8632 | -4/Cetus | Manufactured an Enhanced Grunt 8648 | -4/Cetus | Discovered new exit (range 16) 8657 | -4/Cetus | Manufactured an Enhanced Grunt 8679 | -4/Cetus | Spotted Cetus Guard 8679 | -4/Cetus | Spotted Cetus Guard 8682 | -4/Cetus | Spotted Cetus Guard 8687 | -4/Cetus | Spotted Cetus Guard 8693 | -4/Cetus | Allies destroyed Cetus Guard 8725 | -4/Cetus | Destroyed Cetus Guard 8727 | -4/Cetus | Allies destroyed Cetus Guard 8732 | -4/Cetus | Destroyed Cetus Guard 8742 | -4/Cetus | Lost 5 allies 8751 | -4/Cetus | Lost 4 parts (2p2u) 8773 | -4/Cetus | Found Prototype Device 8773 | -4/Cetus | Identified Exp. Thermal Shield 8777 | -4/Cetus | Found Prototype Protection 8777 | -4/Cetus | Identified Med. Regenerative Plating 8780 | -4/Cetus | Extracted ID and sensor layout for unrecognized location from A7's data core 8785 | -4/Cetus | Discovered exit to Research (range 16) 8791 | -4/Cetus | Met Revision 17 8837 | -4/Cetus | Found Exp. Thermal Shield 9010 | -4/Cetus | Build established: Scavenger-Tank 9012 | -4/Cetus | Identified exit to Archives 9015 | -4/Cetus | Entered Archives 9015 | -4/Archives | Accompanied by 1 ally 9030 | -4/Archives | Met Zhirov 9036 | -4/Archives | Reinforcements dispatched to Archives 9043 | -4/Archives | Read partially decrypted archive contents 9045 | -4/Archives | Discovered new exit (range 16) 9081 | -4/Archives | Reinforcements dispatched to Archives 9083 | -4/Archives | Zhirov warped through subspace 9093 | -4/Archives | Discovered new exit (range 15) 9101 | -4/Archives | Zhirov detonated Archives 9122 | -4/Archives | Discovered exit to Research (range 16) 9132 | -4/Archives | Lost 4 parts (1p1n2w) 9132 | -4/Archives | Lost 3 allies 9146 | -4/Archives | Entered Research 9146 | -3/Research | Evolved 2 slots: Utility x2 9147 | -3/Research | Identified exit to Armory 9313 | -3/Research | Lost 3 parts (1p1n1u) 9346 | -3/Research | Revision forces began assault on 0b10 9348 | -3/Research | Met up with Revision 17++ 9381 | -3/Research | Found Fusion Bomb Launcher 9401 | -3/Research | Build established: Scavenger-Mutant 9435 | -3/Research | Local machine network offline 9543 | -3/Research | Discovered new exit (range 8) 9551 | -3/Research | Identified exit to Research 9666 | -3/Research | Entered another Research area 9666 | -2/Research | Evolved 2 slots: Utility x2 10166 | -2/Research | Found Fusion Bomb Launcher 10211 | -2/Research | Discovered new exit (range 14) 10239 | -2/Research | System corruption reached 10% 10346 | -2/Research | Identified exit to Access 10435 | -2/Research | Incoming investigation squad redirected 10588 | -2/Research | Entered Access 10588 | -1/Access | Evolved 2 slots: Utility x2 10667 | -1/Access | Energy Cycler disabled 10760 | -1/Access | Lost 3 parts (1p2u) 11238 | -1/Access | Spotted B-99 Colossus 11433 | -1/Access | Lost 13 parts (4p4n5u) 11454 | -1/Access | System corruption reached 10% 11511 | -1/Access | Lost 3 parts (1p2w) 11626 | -1/Access | Discovered new exit (range 6) 11632 | *** | Escaped! Last Messages --------------- 11535_ System corrupted: Heat flow error (+229). 11550_ ALERT: Potential suspicious activity detected, Programmers report to Access Zone 5R. 11559_ 6QF6 KIFUGZXIFYZN5DAHVVP#4TQ%N PW:AR13E 11575_ Penetrated by Slug. 11575_ Slug penetrates Wall. 11581_ System corrupted: Substantial component data lost. 11586_ Y-72 Warden suffers critical hit (Impale). 11586_ Power Sword follow-up attack on Y-72 Warden. 11586_ Y-72 Warden destroyed. 11591_ Acquired 46 matter. 11602_ System corrupted: Energy discharge (-215). 11623_ Connecting with Terminal... Feedback: System corruption (+1%). 11623_ ALERT: Suspicious activity at Terminal A001. Dispatching Investigation squad. 11626_ The Access Shell folds into the floor. 11626_ EXIT=FOUND 11629_ System corrupted: Energy discharge (-182). [Achievement: Epsilon Run] Map ----- +----------------------------------------------------+ | ?????????????????????????????????????????????????? | | ?????????????????????????????????????????????????? | | ?????????????????????????????????????????????????? | | ?????????????????????????????????????????????????? | | ?????????????????????????????????????????????????? | | ?????????????????????????????????????????????????? | | ?????????????????????????????????????????????????? | | ?????????????????????????????????????????????????? | | ?????????????????????????????????????????????????? | | ?????????????????????????????????????????????????? | | ?????????????????????????????????????????????????? | | ??????????? ?????????????????????????????????????? | | ?????????? ????????????????????????????######### | | ??????????# ????????????????????????????# | | ??????????# ????????????????????????????# | | ??????????# ????????????????????????????# """ | | ??????????# ????????????????????????????# """ | | ??????????# ????????????????????????????# "" | | ??????????# ??????###???????????????????# F"" | | ??????????# ####### ##########??????????# """ | | ??????????# """T""" "??????????# | | ??????????# """ """ "?????? ??# | | ??????????# "????? ########" | | ??????????# "????? | | ??????????# "" "???? | | ??????????# @" "???? | | ??????????# "???? | | ??????????# "?????? ###"##### | | ??????????# "??????????????# | | ??????????# "??????????????# | | ??????????# ####### ##########??????????????# | | ??????????# #?????###???????????????????????# " | | ??????????# ##############??????????????????# "" | | ??????????# # #??????????????????#! " | | ########### # ! #??????????????????# | | # + #??????????????????# | | # # "" #??????????######### | | # # "" #??????????# # | | # #[ """""" #??????????# # | | # # """"""???????????????# # | | ?"""" # # "" ???????????????# ##### | | ?""""" # # "" ???????????????# #???? | | ?""""" [+% # ???????##+#??????# #???? | | ?"""" =# # ??????? #??????# #???? | | # # ??????# #??????# #???? | | # ######+#??????# #??????# #???? | | # #????# #??????# #??????# #???? | | ########### #????# #??????# #??????# #???? | | ??????????# #????# #??????# #??????####+####???? | | ??????????# #????# #?????## ##?????# [ [ #????? | +----------------------------------------------------+ Best States ------------- Heat Dissipation 110 Coolant Potential 120 Energy Generation 77 Energy Capacity 1180 Matter Stores 300 Matter Capacity 300 Sight Range 16 Robot Scan Range 16 Terrain Scan Density 10 Cloak Strength 2 Power Amplification 30 Additional Mass Support 16 Armor Coverage 825 Resistance: KI 25 Resistance: TH 30 Core Shielding 40 Utility Shielding 66 Phase Shifting 10 Evasion (%) 75 Targeting Accuracy 16 Target Analysis 12 Core Analysis 9 Armor Integrity Analysis 40 Offensive Hacking 30 Defensive Hacking 14 Item Schematics ----------------- Lrg. Storage Unit | -8/Materials | Scanalyzed Xenon Bombardment Thruster | -7/Factory | Hacked Gauss Rifle | -7/Factory | Hacked Prc. Assault Rifle | -6/Factory | Scanalyzed Sml. Storage Unit | -6/Factory | Hacked Combat Drone Bay | -6/Data Miner | Free Lgt. Regenerative Plating | -6/Data Miner | Free Enh. Flexi-carbon Leg | -6/Data Miner | Free Prc. Matter Filter | -6/Data Miner | Free Thunder Hammer | -6/Data Miner | Free Myomer Leg | -6/Data Miner | Free Adv. Hardlight Generator | -6/Data Miner | Free Hvy. Gauss Cannon | -6/Data Miner | Free Imp. Thunder Leg | -6/Data Miner | Free Assault Drone Bay | -5/Zhirov | Free Exp. Heat Sink | -5/Zhirov | Free Exp. Optical Array | -5/Zhirov | Free Imp. Arc Thrower | -5/Zhirov | Free Med. Storage Unit | -4/Factory | Hacked Robot Schematics ------------------ Y-54 Guardian | -7/Factory | Downloaded B-60 Warrior | -6/Data Miner | Free S-27 Virus | -6/Data Miner | Free L-41 Fighter | -6/Data Miner | Free H-66 Slayer | -6/Data Miner | Free X-77 Beamer | -6/Data Miner | Free Fabricated ------------ Nothing Repaired ---------- Nothing Studied --------- Hvy. EM Pulse Gun | -9/Materials | Hacked Wheel | -9/Materials | Hacked Xenon Bombardment Thruster | -6/Factory | Hacked Lgt. Nuclear Core | -6/Factory | Hacked Alien Tech Used ----------------- Integrated Dissipator Core Expander Achievements -------------- Epsilon Run I Have Friends Everywhere More Power To You Prolific Hacker Recruitment Drive Revolutionary Research Challenges ------------ None Game ------ Seed ReflectiveRainbowParser Manual? 0 Play Time 03:07:02 Cumulative 89.7 hours Start 2026.07.25 @ 16:10:29 End 2026.07.25 @ 19:21:00 Sessions 1 Manual Loads 0 Difficulty Rogue Special Mode None Game No. 52 Rogue 52 Adventurer 0 Explorer 0 Win Type 0 Total 1 Types 1/0/0/0/0/0/0/0/0/0 Lore% 54 Gallery% 51 Achievement% 40 Wizard Run 0 Options --------- Layout 0 ASCII 0 Keyboard 1 Movement Vi Keybinds 0 Fullscreen 1 Font 24/Smallcaps Map View 76x50 Zoom Use 0% Tactical HUD 1 Map Filters NONE Filters NONE Steam 1 RUN: 50ae4c89-34a8-45f4-bb01-f1ded543ad35